lending/lending_fUSD_20240111
["ID","MTS","AMOUNT","RATE_DAILY","PERIOD"]
[311250986,1704996647221,-200.0,0.00036703,10]
[311250988,1704996647231,-800.0,0.00036703,10]
[311250990,1704996647240,-150.0,0.00036706,2]
[311250992,1704996647248,-150.0,0.00036714,2]
[311250994,1704996647258,-150.0,0.00036718,2]
[311250996,1704996647269,-150.0,0.00036721,2]
[311250998,1704996647278,-300.0,0.00036727,2]
[311251000,1704996647287,-150.0,0.00036731,2]
[311251002,1704996647296,-150.0,0.00036737,2]
[311251004,1704996647306,-150.0,0.00036738,2]
[311251006,1704996647315,-1500.0,0.00036738,2]
[311251008,1704996647325,-150.0,0.00036746,2]
[311251010,1704996647334,-150.0,0.0003675,2]
[311251011,1704996647343,-150.0,0.00036753,2]
[311251013,1704996647352,-1510.65544807,0.00036754,2]
[311251015,1704996647361,-150.0,0.0003676,2]
[311251017,1704996647370,-150.0,0.00036767,2]
[311251019,1704996647379,-1500.0,0.00036777,2]
[311251021,1704996647389,-150.0,0.00036778,2]
[311251022,1704996647398,-150.0,0.00036781,2]
[311251024,1704996647407,-150.0,0.00036792,2]
[311251025,1704996647416,-1500.0,0.00036793,2]
[311251027,1704996647425,-150.0,0.00036795,2]
[311251029,1704996647434,-211.29351447,0.00036798,4]
[311251031,1704996647443,-253.03478513,0.00036798,4]
[311251033,1704996647452,-105629.44195089,0.000368,2]
[311251035,1704996647462,-350.63736965,0.000368,4]
[311251037,1704996647471,-200.0,0.000368,2]
[311251038,1704996647480,-682.58768049,0.000368,4]
[311251039,1704996647489,-155.41041342,0.000368,7]
[311251040,1704996647499,-1973.3174974,0.000368,2]
[311251041,1704996647508,-3412.80530229,0.000368,3]
[311251042,1704996647518,-155.66520816,0.000368,4]
[311251043,1704996647528,-2000.0,0.000368,2]
[311251044,1704996647538,-692290.96042492,0.000368,2]
[311251045,1704996647547,-1038.8432883,0.000368,14]
[311251046,1704996647557,-197.88188,0.000368,7]
[311251047,1704996647566,-197.88188,0.000368,7]
[311251048,1704996647576,-2000.0,0.000368,2]
[311251049,1704996647585,-200.0,0.000368,2]
[311251050,1704996647594,-151.0,0.000368,7]
[311251051,1704996647603,-151.0,0.000368,7]
[311251052,1704996647760,-2000.0,0.000368,2]
[311251053,1704996647771,-200.0,0.000368,2]
[311251054,1704996647781,-151.0,0.000368,7]
[311251055,1704996647791,-856.517788,0.000368,7]
[311251056,1704996647805,-856.517788,0.000368,7]
[311251057,1704996647814,-227.794827,0.000368,7]
[311251058,1704996647823,-151.0,0.000368,7]
[311251059,1704996647833,-151.0,0.000368,7]
[311251060,1704996647843,-151.0,0.000368,7]
[311251061,1704996647853,-1725.85762533,0.000368,2]
[311251062,1704996647862,-151.0,0.000368,7]
[311251063,1704996647872,-151.0,0.000368,7]
[311251064,1704996647882,-151.0,0.000368,7]
[311251065,1704996647894,-151.0,0.000368,7]
[311251066,1704996647903,-1217.978725,0.000368,7]
[311251067,1704996647912,-1217.978725,0.000368,7]
[311251068,1704996647923,-151.0,0.000368,7]
[311251069,1704996647933,-366.929219,0.000368,7]
[311251070,1704996647946,-366.929219,0.000368,7]
[311251071,1704996647957,-522.7486299,0.00036804,9]
[311251072,1704996647968,-522.74862986,0.00036804,9]
[311251073,1704996647977,-522.74862986,0.00036804,9]
[311251074,1704996647986,-522.74862986,0.00036804,9]
[311251075,1704996647995,-522.74862986,0.00036804,9]
[311251076,1704996648004,-150.0,0.00036806,2]
[311251077,1704996648013,-150.0,0.00036807,2]
[311251078,1704996648023,-261.6208,0.0003681,2]
[311251079,1704996648032,-150.0,0.0003683,2]
[311251080,1704996648041,-150.0,0.00036837,2]
[311251081,1704996648050,-150.0,0.00036847,2]
[311251082,1704996648059,-1500.0,0.00036856,2]
[311251083,1704996648068,-1500.0,0.00036857,2]
[311251084,1704996648078,-150.0,0.00036868,2]
[311251085,1704996648087,-150.0,0.00036869,2]
[311251086,1704996648096,-150.0,0.0003687,2]
[311251087,1704996648105,-1500.0,0.00036876,2]
[311251088,1704996648115,-150.0,0.00036879,2]
[311251089,1704996648124,-150.0,0.00036894,2]
[311251090,1704996648133,-150.0,0.00036895,2]
[311251091,1704996648143,-1000.0,0.00036899,2]
[311251092,1704996648152,-150.0,0.00036899,2]
[311251093,1704996648162,-50000.0,0.000369,3]
[311251094,1704996648171,-465.7809,0.000369,2]
[311251095,1704996648180,-401.27417524,0.000369,5]
[311251096,1704996648190,-457.16302336,0.000369,5]
[311251097,1704996648199,-151.0,0.000369,7]
[311251098,1704996648209,-831.046598,0.000369,7]
[311251099,1704996648219,-831.046598,0.000369,7]
[311251100,1704996648228,-151.0,0.000369,7]
[311251101,1704996648237,-150.14241864,0.00036908,2]
[311251102,1704996648247,-150.0,0.00036915,2]
[311251103,1704996648257,-150.0,0.00036921,2]
[311251104,1704996648266,-1500.0,0.00036933,2]
[311251105,1704996648276,-150.0,0.00036933,2]
[311251106,1704996648286,-150.0,0.00036935,2]
[311251107,1704996648295,-150.0,0.00036938,2]
[311251108,1704996648304,-150.0,0.00036938,2]
[311251109,1704996648314,-300.0,0.0003694,30]
[311251110,1704996648323,-300.0,0.0003694,30]
[311251111,1704996648333,-1500.0,0.00036946,2]
[311251112,1704996648342,-390.91547884,0.00036948,2]
[311251113,1704996648351,-150.39533009,0.0003696,30]
[311251114,1704996648361,-63505.371644,0.00036962,2]
[311251115,1704996648371,-150.0,0.00036964,2]
[311251116,1704996648380,-150.0,0.0003697,2]
[311251117,1704996648389,-150.0,0.00036971,2]
[311251118,1704996648399,-150.0,0.00036981,2]
[311251119,1704996648408,-150.0,0.00036983,2]
[311251120,1704996648418,-150.0,0.00036984,2]
[311251121,1704996648427,-155.0,0.00036987,2]
[311251122,1704996648436,-300.0,0.00036988,2]
[311251123,1704996648446,-150.0,0.00036994,2]
[311251124,1704996648455,-523.25492718,0.00036997,7]
[311251125,1704996648464,-150.0,0.00036997,2]
[311251126,1704996648474,-150.0,0.00036999,2]
[311251127,1704996648483,-100000.0,0.00037,7]
[311251128,1704996648493,-457448.36366364,0.00037,6]
[311251129,1704996648502,-5000.0,0.00037,3]
[311251130,1704996648512,-682.87016727,0.00037,7]
[311251131,1704996648522,-310.27195603,0.00037,4]
[311251132,1704996648532,-155.0,0.00037,4]
[311251133,1704996648542,-8124.56871878,0.00037,7]
[311251134,1704996648551,-650.0,0.00037,3]
[311251135,1704996648562,-317.03589178,0.00037,30]
[311251136,1704996648572,-151.0,0.00037,7]
[311251137,1704996648581,-151.0,0.00037,7]
[311251138,1704996648590,-151.0,0.00037,7]
[311251139,1704996648599,-222.67,0.00037,2]
[311251140,1704996648608,-168.033225,0.00037,7]
[311251141,1704996648617,-151.0,0.00037,7]
[311251142,1704996648627,-151.0,0.00037,7]
[311251143,1704996648637,-151.0,0.00037,7]
[311251144,1704996648646,-1217.978725,0.00037,7]
[311251145,1704996648654,-1217.978725,0.00037,7]
[311251146,1704996648663,-151.0,0.00037,7]
[311251147,1704996648674,-366.929219,0.00037,7]
[311251148,1704996648683,-366.929219,0.00037,7]
[311251149,1704996648691,-4000.00013412,0.00037,2]
[311251150,1704996648702,-4704.21,0.00037075,2]
[311251151,1704996648711,-29836.7209872,0.00037092,11]
[311251152,1704996648720,-12044.24852624,0.00037092,10]
[311251153,1704996648729,-23693.82032486,0.00037092,11]
[311251154,1704996648738,-20892.20264095,0.00037092,12]
[311251155,1704996648748,-1500.0,0.000371,24]
[311251156,1704996648758,-2500.0,0.00037111,40]
[311251157,1704996648769,-343.6114783,0.00037111,20]
[311251158,1704996648778,-151.0,0.00037124,2]
[311251159,1704996648787,-2000.0,0.00037168,2]
[311251160,1704996648798,-200.0,0.00037168,2]
[311251161,1704996648807,-2000.0,0.00037168,2]
[311251162,1704996648816,-200.0,0.00037168,2]
[311251163,1704996648826,-150.77373,0.000372,2]
[311251164,1704996648835,-222.09741979,0.0003731,4]
[311251165,1704996648844,-164.57054148,0.00037406,2]
[311251166,1704996648853,-261.62081,0.0003743,2]
[311251167,1704996648863,-204.0,0.00037437,11]
[311251168,1704996648872,-153.84,0.00037443,2]
[311251169,1704996648881,-150.0,0.00037443,2]
[311251170,1704996648890,-150.0,0.00037443,2]
[311251171,1704996648900,-150.57997199,0.0003746,2]
[311251172,1704996648909,-665.25406839,0.00037498,2]
[311251173,1704996648918,-1490.0,0.000375,12]
[311251174,1704996648928,-5000.0,0.000375,25]
[311251175,1704996648938,-19511.173418,0.000375,2]
[311251176,1704996648949,-2000.0,0.0003754,2]
[311251177,1704996648957,-200.0,0.0003754,2]
[311251178,1704996648966,-2000.0,0.0003754,2]
[311251179,1704996648975,-200.0,0.0003754,2]
[311251180,1704996648984,-150.0,0.00037553,30]
[311251181,1704996648995,-248.218247,0.00037554,7]
[311251182,1704996649005,-151.0,0.00037554,7]
[311251183,1704996649016,-150.14241864,0.00037566,2]
[311251184,1704996649025,-151.0,0.00037598,7]
[311251185,1704996649034,-856.517788,0.00037598,7]
[311251186,1704996649044,-856.517788,0.00037598,7]
[311251187,1704996649053,-500.0,0.000376,3]
[311251188,1704996649063,-1500.0,0.000376,24]
[311251189,1704996649072,-435.3903,0.00037678,4]
[311251190,1704996649081,-2996.74897427,0.00037685,4]
[311251191,1704996649090,-152.49,0.00037685,2]
[311251192,1704996649100,-578.97126269,0.00037686,4]
[311251193,1704996649109,-167.8946825,0.00037687,4]
[311251194,1704996649119,-300.02,0.00037689,2]
[311251195,1704996649128,-3291.64435569,0.00037689,2]
[311251196,1704996649137,-716.32220065,0.00037689,4]
[311251197,1704996649147,-250.0,0.000377,2]
[311251198,1704996649156,-2169.2826281,0.00037726,2]
[311251199,1704996649165,-158.0,0.00037789,2]
[311251200,1704996649175,-12572.41583442,0.00037793,2]
[311251201,1704996649184,-1806.64,0.00037795,2]
[311251202,1704996649194,-197.88188,0.00037799,7]
[311251203,1704996649204,-197.88188,0.00037799,7]
[311251204,1704996649213,-50118.02934142,0.000378,30]
[311251205,1704996649223,-50000.0,0.000378,4]
[311251206,1704996649232,-2297.27,0.000378,3]
[311251207,1704996649241,-2297.27,0.000378,3]
[311251208,1704996649251,-2297.27,0.000378,3]
[311251209,1704996649260,-2297.27,0.000378,3]
[311251210,1704996649269,-2297.27,0.000378,3]
[311251211,1704996649279,-2297.27,0.000378,3]
[311251212,1704996649288,-2297.27,0.000378,3]
[311251213,1704996649298,-2297.27,0.000378,3]
[311251214,1704996649307,-2297.27,0.000378,3]
[311251215,1704996649317,-2297.27,0.000378,3]
[311251216,1704996649326,-2297.27,0.000378,3]
[311251217,1704996649336,-2297.27,0.000378,3]
[311251218,1704996649345,-2297.27,0.000378,3]
[311251219,1704996649355,-2297.27,0.000378,3]
[311251220,1704996649364,-2297.27,0.000378,3]
[311251221,1704996649374,-2297.27,0.000378,3]
[311251222,1704996649383,-2297.27,0.000378,3]
[311251223,1704996649393,-2297.27,0.000378,3]
[311251224,1704996649403,-2297.27,0.000378,3]
[311251225,1704996649412,-2297.27,0.000378,3]
[311251226,1704996649421,-153.0,0.000378,7]
[311251227,1704996649430,-153.0,0.000378,7]
[311251228,1704996649439,-676.724794,0.000378,25]
[311251229,1704996649450,-275.678675,0.000378,2]
[311251230,1704996649459,-157.59,0.000378,3]
[311251231,1704996649468,-157.59,0.000378,3]
[311251232,1704996649478,-157.59,0.000378,3]
[311251233,1704996649487,-3820.13470439,0.000378,2]
[311251234,1704996649496,-151.0,0.00037804,7]
[311251235,1704996649505,-831.046598,0.00037804,7]
[311251236,1704996649514,-831.046598,0.00037804,7]
[311251237,1704996649526,-151.0,0.00037804,7]
[311251238,1704996649534,-5325.77264778,0.00037806,2]
[311251239,1704996649543,-459.97785104,0.00037806,2]
[311251240,1704996649553,-378.20017143,0.00037806,2]
[311251241,1704996649563,-14534.55140957,0.00037806,2]
[311251242,1704996649572,-226.43485623,0.00037806,2]
[311251243,1704996649582,-2034.29039599,0.00037806,2]
[311251244,1704996649596,-385.73000421,0.00037806,2]
[311251245,1704996649614,-523.00005878,0.00037806,2]
[311251246,1704996649623,-303.2912829,0.00037806,120]
[311251247,1704996649633,-989.87447982,0.00037806,2]
[311251248,1704996649641,-347.90876564,0.00037806,2]
[311251249,1704996649651,-5027.28352447,0.00037806,35]
[311251250,1704996649660,-9319.69877245,0.00037806,2]
[311251251,1704996649670,-495.72712304,0.00037806,120]
[311251252,1704996649679,-5000.0,0.00037806,2]
[311251253,1704996649689,-166.1338265,0.00037806,21]
[311251254,1704996649700,-1753.76308041,0.00037806,2]
[311251255,1704996649709,-394.51917785,0.00037806,120]
[311251256,1704996649718,-550.17390916,0.00037806,2]
[311251257,1704996649728,-60010.0,0.00037806,60]
[311251258,1704996649737,-500.0,0.00037806,120]
[311251259,1704996649746,-262.90945062,0.00037806,30]
[311251260,1704996649755,-1000.0,0.00037806,30]
[311251261,1704996649765,-906.97,0.00037806,30]
[311251262,1704996649774,-18102.68349617,0.00037806,30]
[311251263,1704996649784,-238022.14445627,0.00037806,2]
[311251264,1704996649793,-558.95269538,0.00037806,30]
[311251265,1704996649805,-1908.286752,0.00037806,30]
[311251266,1704996649814,-1279.597124,0.00037806,2]
[311251267,1704996649823,-391.91305,0.00037808,14]
[311251268,1704996649834,-3005.96,0.00037808,2]
[311251269,1704996649844,-857.83,0.00037844,2]
[311251270,1704996649853,-406.31,0.000379,2]
[311251271,1704996649862,-1000.0,0.000379,15]
[311251272,1704996649873,-151.0,0.000379,7]
[311251273,1704996649883,-151.0,0.000379,7]
[311251274,1704996649893,-856.517788,0.000379,7]
[311251275,1704996649903,-856.517788,0.000379,7]
[311251276,1704996649912,-151.0,0.000379,7]
[311251277,1704996649921,-151.0,0.000379,7]
[311251278,1704996649930,-151.0,0.000379,7]
[311251279,1704996649939,-831.046598,0.000379,7]
[311251280,1704996649951,-831.046598,0.000379,7]
[311251281,1704996649960,-151.0,0.000379,7]
[311251282,1704996649970,-616295.115317,0.000379,3]
[311251283,1704996649979,-151.0,0.000379,7]
[311251284,1704996649989,-151.0,0.000379,7]
[311251285,1704996649999,-151.0,0.000379,7]
[311251286,1704996650009,-1217.978725,0.000379,7]
[311251287,1704996650018,-1217.978725,0.000379,7]
[311251288,1704996650028,-192.305001,0.000379,7]
[311251289,1704996650037,-366.929219,0.000379,7]
[311251290,1704996650046,-366.929219,0.000379,7]
[311251291,1704996650056,-49139.0,0.000379,7]
[311251292,1704996650066,-2000.0,0.00037915,2]
[311251293,1704996650121,-200.0,0.00037915,2]
[311251294,1704996650131,-1793.08303871,0.00037915,2]
[311251295,1704996650141,-200.0,0.00037915,2]
[311251296,1704996650150,-100000.0,0.00038,8]
[311251297,1704996650160,-3060.04420173,0.00038,4]
[311251298,1704996650169,-1049.67172007,0.00038,2]
[311251299,1704996650178,-158367.04220359,0.00038,4]
[311251300,1704996650187,-1672.67465769,0.00038,4]
[311251301,1704996650196,-353987.55451102,0.00038,2]
[311251302,1704996650206,-1000.0,0.00038,30]
[311251303,1704996650215,-4609.64,0.00038,7]
[311251304,1704996650225,-3012.77,0.00038,7]
[311251305,1704996650234,-206.12530117,0.00038,2]
[311251306,1704996650244,-197.88188,0.00038,7]
[311251307,1704996650254,-197.88188,0.00038,7]
[311251308,1704996650263,-155.0,0.00038,2]
[311251309,1704996650272,-184.0,0.00038,2]
[311251310,1704996650282,-1782.41051028,0.00038,2]
[311251311,1704996650291,-1782.41051028,0.00038,2]
[311251312,1704996650300,-1782.41051028,0.00038,2]
[311251313,1704996650310,-1782.41051028,0.00038,2]
[311251314,1704996650319,-1782.41051028,0.00038,2]
[311251315,1704996650329,-1782.41051028,0.00038,2]
[311251316,1704996650338,-1782.41051028,0.00038,2]
[311251317,1704996650352,-1782.41051028,0.00038,2]
[311251318,1704996650362,-1782.41051028,0.00038,2]
[311251319,1704996650372,-1782.41051028,0.00038,2]
[311251320,1704996650382,-1782.41051028,0.00038,2]
[311251321,1704996650391,-1782.41051028,0.00038,2]
[311251322,1704996650401,-1782.41051028,0.00038,2]
[311251323,1704996650411,-1782.41051028,0.00038,2]
[311251324,1704996650420,-1782.41051028,0.00038,2]
[311251325,1704996650430,-1782.41051028,0.00038,2]
[311251326,1704996650439,-1782.41051028,0.00038,2]
[311251327,1704996650449,-1782.41051028,0.00038,2]
[311251328,1704996650458,-1782.41051028,0.00038,2]
[311251329,1704996650467,-1782.41051028,0.00038,2]
[311251330,1704996650477,-1782.41051028,0.00038,2]
[311251331,1704996650486,-1782.41051028,0.00038,2]
[311251332,1704996650496,-1782.41051028,0.00038,2]
[311251333,1704996650505,-1782.41051028,0.00038,2]
[311251334,1704996650515,-1782.41051028,0.00038,2]
[311251335,1704996650524,-1782.41051028,0.00038,2]
[311251336,1704996650533,-1782.41051028,0.00038,2]
[311251337,1704996650543,-1782.41051028,0.00038,2]
[311251338,1704996650552,-1782.41051028,0.00038,2]
[311251339,1704996650561,-1782.41051028,0.00038,2]
[311251340,1704996650571,-418.17723487,0.00038,2]
[311251341,1704996650580,-418.17723487,0.00038,2]
[311251342,1704996650590,-418.17723487,0.00038,2]
[311251343,1704996650599,-418.17723487,0.00038,2]
[311251344,1704996650608,-418.17723487,0.00038,2]
[311251345,1704996650617,-418.17723487,0.00038,2]
[311251346,1704996650626,-418.17723487,0.00038,2]
[311251347,1704996650635,-418.17723487,0.00038,2]
[311251348,1704996650645,-418.17723487,0.00038,2]
[311251349,1704996650654,-418.17723487,0.00038,2]
[311251350,1704996650664,-418.17723487,0.00038,2]
[311251351,1704996650677,-418.17723487,0.00038,2]
[311251352,1704996650687,-418.17723487,0.00038,2]
[311251353,1704996650696,-418.17723487,0.00038,2]
[311251354,1704996650706,-418.17723487,0.00038,2]
[311251355,1704996650716,-418.17723487,0.00038,2]
[311251356,1704996650725,-418.17723487,0.00038,2]
[311251357,1704996650736,-418.17723487,0.00038,2]
[311251358,1704996650750,-418.17723487,0.00038,2]
[311251359,1704996650759,-418.17723487,0.00038,2]
[311251360,1704996650769,-418.17723487,0.00038,2]
[311251361,1704996650778,-418.17723487,0.00038,2]
[311251362,1704996650788,-418.17723487,0.00038,2]
[311251363,1704996650801,-418.17723487,0.00038,2]
[311251364,1704996650811,-418.17723487,0.00038,2]
[311251365,1704996650820,-418.17723487,0.00038,2]
[311251366,1704996650831,-418.17723487,0.00038,2]
[311251367,1704996650842,-418.17723487,0.00038,2]
[311251368,1704996650852,-418.17723487,0.00038,2]
[311251369,1704996650861,-418.17723487,0.00038,2]
[311251370,1704996650871,-261.6208,0.0003806,2]
[311251371,1704996650881,-1000.0,0.000381,30]
[311251372,1704996650890,-70800.42835919,0.00038142,2]
[311251373,1704996650900,-522.74862986,0.00038177,10]
[311251374,1704996650909,-204.0,0.00038189,13]
[311251375,1704996650919,-4134.34833476,0.00038208,2]
[311251376,1704996650929,-150.14241864,0.00038224,2]
[311251377,1704996650939,-2000.0,0.00038294,2]
[311251378,1704996650952,-200.0,0.00038294,2]
[311251379,1704996650962,-200.0,0.00038294,2]
[311251380,1704996650972,-22735.9795329,0.0003833,10]
[311251381,1704996650982,-4704.21,0.00038352,2]
[311251382,1704996650992,-1750.58745688,0.00038356,30]
[311251383,1704996651001,-5000.0,0.00038356,2]
[311251384,1704996651011,-5000.0,0.00038356,2]
[311251385,1704996651021,-5000.0,0.00038356,2]
[311251386,1704996651034,-5000.0,0.00038356,2]
[311251387,1704996651044,-1128.88846617,0.00038356,2]
[311251388,1704996651053,-666.0,0.00038356,2]
[311251389,1704996651063,-500.0,0.00038356,2]
[311251390,1704996651072,-153.84,0.00038356,2]
[311251391,1704996651082,-200.0,0.00038356,2]
[311251392,1704996651093,-3868.0,0.00038356,10]
[311251393,1704996651102,-21927.89,0.00038356,2]
[311251394,1704996651113,-155.0,0.00038357,2]
[311251395,1704996651123,-750.0,0.000384,2]
[311251396,1704996651132,-5365.0,0.000384,2]
[311251397,1704996651142,-8000.0,0.000384,2]
[311251398,1704996651152,-158.0,0.00038421,2]
[311251399,1704996651163,-150.03885137,0.00038434,7]
[311251400,1704996651173,-900.0,0.0003847,2]
[311251401,1704996651183,-900.0,0.0003847,2]
[311251402,1704996651192,-900.0,0.0003847,2]
[311251403,1704996651204,-900.0,0.0003847,2]
[311251404,1704996651214,-900.0,0.0003847,2]
[311251405,1704996651223,-900.0,0.0003847,2]
[311251406,1704996651233,-900.0,0.0003847,2]
[311251407,1704996651243,-900.0,0.0003847,2]
[311251408,1704996651252,-900.0,0.0003847,2]
[311251409,1704996651261,-900.0,0.0003847,2]
[311251410,1704996651271,-900.0,0.0003847,2]
[311251411,1704996651280,-900.0,0.0003847,2]
[311251412,1704996651289,-900.0,0.0003847,2]
[311251413,1704996651298,-900.0,0.0003847,2]
[311251414,1704996651307,-900.0,0.0003847,2]
[311251415,1704996651317,-900.0,0.0003847,2]
[311251416,1704996651326,-900.0,0.0003847,2]
[311251417,1704996651336,-900.0,0.0003847,2]
[311251418,1704996651346,-900.0,0.0003847,2]
[311251419,1704996651355,-900.0,0.0003847,2]
[311251420,1704996651365,-900.0,0.0003847,2]
[311251421,1704996651374,-900.0,0.0003847,2]
[311251422,1704996651384,-900.0,0.0003847,2]
[311251423,1704996651393,-900.0,0.0003847,2]
[311251424,1704996651403,-900.0,0.0003847,2]
[311251425,1704996651413,-900.0,0.0003847,2]
[311251426,1704996651422,-900.0,0.0003847,2]
[311251427,1704996651432,-900.0,0.0003847,2]
[311251428,1704996651441,-900.0,0.0003847,2]
[311251429,1704996651451,-900.0,0.0003847,2]
[311251430,1704996651461,-900.0,0.0003847,2]
[311251431,1704996651470,-900.0,0.0003847,2]
[311251432,1704996651479,-900.0,0.0003847,2]
[311251433,1704996651489,-900.0,0.0003847,2]
[311251434,1704996651499,-900.0,0.0003847,2]
[311251435,1704996651509,-900.0,0.0003847,2]
[311251436,1704996651519,-900.0,0.0003847,2]
[311251437,1704996651529,-900.0,0.0003847,2]
[311251438,1704996651538,-900.0,0.0003847,2]
[311251439,1704996651548,-900.0,0.0003847,2]
[311251440,1704996651558,-900.0,0.0003847,2]
[311251441,1704996651568,-900.0,0.0003847,2]
[311251442,1704996651578,-900.0,0.0003847,2]
[311251443,1704996651588,-900.0,0.0003847,2]
[311251444,1704996651598,-900.0,0.0003847,2]
[311251445,1704996651607,-900.0,0.0003847,2]
[311251446,1704996651617,-900.0,0.0003847,2]
[311251447,1704996651626,-900.0,0.0003847,2]
[311251448,1704996651636,-900.0,0.0003847,2]
[311251449,1704996651646,-900.0,0.0003847,2]
[311251450,1704996651656,-900.0,0.0003847,2]
[311251451,1704996651665,-900.0,0.0003847,2]
[311251452,1704996651675,-900.0,0.0003847,2]
[311251453,1704996651685,-900.0,0.0003847,2]
[311251454,1704996651708,-900.0,0.0003847,2]
[311251455,1704996651718,-900.0,0.0003847,2]
[311251456,1704996651729,-900.0,0.0003847,2]
[311251457,1704996651740,-900.0,0.0003847,2]
[311251458,1704996651750,-900.0,0.0003847,2]
[311251459,1704996651760,-900.0,0.0003847,2]
[311251460,1704996651771,-900.0,0.0003847,2]
[311251461,1704996651781,-900.0,0.0003847,2]
[311251462,1704996651793,-900.0,0.0003847,2]
[311251463,1704996651803,-900.0,0.0003847,2]
[311251464,1704996651814,-900.0,0.0003847,2]
[311251465,1704996651824,-900.0,0.0003847,2]
[311251466,1704996651834,-900.0,0.0003847,2]
[311251467,1704996651845,-900.0,0.0003847,2]
[311251468,1704996651855,-900.0,0.0003847,2]
[311251469,1704996651866,-900.0,0.0003847,2]
[311251470,1704996651877,-900.0,0.0003847,2]
[311251471,1704996651888,-900.0,0.0003847,2]
[311251472,1704996651898,-248.0,0.0003847,2]
[311251473,1704996651908,-491.54547707,0.000385,4]
[311251474,1704996651918,-1000.0,0.000385,30]
[311251475,1704996651927,-150.03885137,0.00038534,7]
[311251476,1704996651938,-153.0,0.000386,7]
[311251477,1704996651947,-153.0,0.000386,7]
[311251478,1704996651958,-150.0,0.00038601,2]
[311251479,1704996651968,-182.37,0.00038651,60]
[311251480,1704996651978,-1456.72,0.00038651,60]
[311251481,1704996651988,-261.62081,0.0003868,2]
[311251482,1704996651998,-10000.0,0.00038683,3]
[311251483,1704996652008,-200.0,0.00038698,15]
[311251484,1704996652017,-1000.0,0.000387,15]
[311251485,1704996652027,-450.0,0.0003874,3]
[311251486,1704996652037,-444.54148582,0.00038767,2]
[311251487,1704996652048,-975.0,0.000388,16]
[311251488,1704996652060,-184.87968352,0.000388,24]
[311251489,1704996652070,-4609.64,0.000388,7]
[311251490,1704996652080,-3012.77,0.000388,7]
[311251491,1704996652090,-150.14241864,0.00038882,2]
[311251492,1704996652101,-150.0,0.00038888,2]
[311251493,1704996652110,-150.0,0.00038888,2]
[311251494,1704996652121,-9083.03712058,0.000389,7]
[311251495,1704996652131,-789.0,0.000389,30]
[311251496,1704996652142,-151.0,0.000389,7]
[311251497,1704996652152,-151.0,0.000389,7]
[311251498,1704996652162,-1217.978725,0.000389,7]
[311251499,1704996652171,-1217.978725,0.000389,7]
[311251500,1704996652182,-366.929219,0.000389,7]
[311251501,1704996652191,-366.929219,0.000389,7]
[311251502,1704996652203,-391.91305,0.00038904,14]
[311251503,1704996652213,-1456.72,0.00038904,60]
[311251504,1704996652223,-151.0,0.00038904,7]
[311251505,1704996652233,-151.0,0.00038904,7]
[311251506,1704996652242,-204.0,0.00038941,14]
[311251507,1704996652254,-151.0,0.00038948,7]
[311251508,1704996652264,-856.517788,0.00038948,7]
[311251509,1704996652273,-856.517788,0.00038948,7]